Cogmind - Beta 16 @@@ ROGUE MODE // 2025.11.17 @ 22:44:17 Player: shapeshifter Result: Destroyed by S-27 Virus with Autogun Performance ------------- Evolutions (5) 2500 Regions Visited (11) 2200 Robots Destroyed (86) 430 Value Destroyed (3678) 3678 Prototype IDs (33) 660 Alien Tech Used (2) 400 Bonus (318) 318 TOTAL SCORE: 10186 Bonus ------- High Alert Combat Kills 18 Met Zhirov 300 Cogmind --------- Core Integrity 0/1000 Matter 290/300 Energy 90/100 System Corruption 4% Temperature Cool (0) Movement Walking (141) Location -4/Proximity Caves Parts ------- > --- POWER (2) -------- (None) > --- PROPULSION (5) --- Myomer-Cooled Exoskeleton > --- UTILITY (6) ------ Large Storage Unit Improved Signal Interpreter > --- WEAPON (4) ------- (None) > --- INVENTORY (15) --- Advanced Cooling System Huge Storage Unit 0b10 Decoder Chip [Generic] Improved Armor Integrity Analyzer Weapon Cycler Improved Transmission Jammer Improved Phase Shifter Advanced Thermal Shield Advanced Hacking Suite High-powered Tractor Beam Peak State ------------ > --- POWER ------------ Antimatter-Momentum Reactor > --- PROPULSION ------- Myomer-Cooled Exoskeleton > --- UTILITY ---------- Armored Scrap Engine Large Storage Unit Improved Sensor Array Improved Signal Interpreter Advanced Reaction Control System > --- WEAPON ----------- Heavy Shock Bomb Launcher Hpw. Ballistic Coil Construct/G Makeshift Axe > --- INVENTORY -------- Advanced Cooling System Huge Storage Unit Improved Sensor Array 0b10 Decoder Chip [Generic] Improved Armor Integrity Analyzer Weapon Cycler Improved Transmission Jammer Advanced Reaction Control System Advanced Thermal Shield Advanced Hacking Suite High-powered Tractor Beam Transdimensional Reconstructor Lance [Rating: 80] Favorites ----------- Power Constructs Engine Improved Ion Engine Power Core Light Nuclear Core Reactor Constructs Propulsion Light Treads Treads Light Treads Leg Constructs Wheel Subdweller Monowheel Flight Unit Improved Cesium-ion Thruster Utility Machine Analyzer Device Improved Heat Sink Storage Huge Storage Unit Processor Machine Analyzer Protection Heavy Armor Plating Weapon Constructs Energy Gun Gatling Laser Energy Cannon Heavy Ion Cannon Ballistic Gun Constructs Ballistic Cannon Flak Cannon Launcher Advanced EMP Blaster Special Weapon Remote Datajack Slashing Weapon Makeshift Axe Piercing Weapon Lance Build | -11 -10 -10 -8 -7 -7 -7 -5 -5 -5 -5 -4 ------- Run | Yrd Mat Sub Mat Fac Sto Rec Fac Upp Upp Zhi Pro Slots Evolved 10 | . . . 4 2 . . 4 . . . . Power 1 | . . . . . . . 1 . . . . Propulsion 3 | . . . 2 . . . 1 . . . . Utility 4 | . . . 2 1 . . 1 . . . . Weapon 2 | . . . . 1 . . 1 . . . . Parts Attached 83 | 7 2 8 17 8 15 9 6 . 5 3 3 Power 5 | 1 . . 2 . 1 . . . . 1 . Engine 3 | 1 . . 1 . 1 . . . . . . Core 1 | . . . 1 . . . . . . . . Reactor 1 | . . . . . . . . . . 1 . Propulsion 18 | 2 . 4 5 2 3 1 . . . 1 . Treads 11 | 2 . 1 5 2 1 . . . . . . Leg 3 | . . . . . 1 1 . . . 1 . Wheel 3 | . . 3 . . . . . . . . . Hover . | . . . . . . . . . . . . Flight 1 | . . . . . 1 . . . . . . Utility 30 | 2 . . 6 3 2 6 5 . 3 1 2 Device 14 | 1 . . 2 1 1 2 3 . 2 . 2 Storage 4 | 1 . . 1 . . 1 1 . . . . Processor 4 | . . . . 2 . . 1 . 1 . . Hackware . | . . . . . . . . . . . . Protection 8 | . . . 3 . 1 3 . . . 1 . Artifact . | . . . . . . . . . . . . Weapon 30 | 2 2 4 4 3 9 2 1 . 2 . 1 Energy Gun 6 | 1 . 2 1 1 . 1 . . . . . Energy Cannon 2 | . . . . . 2 . . . . . . Ballistic Gun 10 | 1 2 2 3 1 1 . . . . . . Ballistic Cannon 6 | . . . . 1 4 . 1 . . . . Launcher 3 | . . . . . 2 . . . . . 1 Special Weapon 1 | . . . . . . 1 . . . . . Impact Weapon . | . . . . . . . . . . . . Slashing Weapon 1 | . . . . . . . . . 1 . . Piercing Weapon 1 | . . . . . . . . . 1 . . Special Melee Weapon . | . . . . . . . . . . . . Unidentified Prototypes 8 | . . . . . 2 1 . . . 4 1 Parts Lost 39 | . . 2 2 1 13 2 2 1 2 . 14 Power 7 | . . 1 1 . 1 1 . . 1 . 2 Propulsion 8 | . . 1 . . 5 . . . 1 . 1 Utility 11 | . . . 1 . 3 1 . . . . 6 Weapon 13 | . . . . 1 4 . 2 1 . . 5 Highest Loss Streak 6 | . . 2 1 1 3 2 2 1 2 . 6 To Critical Strikes . | . . . . . . . . . . . . Average Backups 12 | 2 7 7 8 20 21 11 5 5 11 14 12 Power . | . . . . 1 2 1 . . . . . Propulsion 1 | 1 2 2 1 2 4 1 . . . . . Utility 4 | . . . 3 5 3 3 4 5 11 11 10 Weapon 5 | . 5 5 3 8 10 3 1 . . 2 . Tool/Special . | . . . . . . . . . . . . Unused Backups 45 | . 2 4 5 5 6 14 . . . 1 8 Power 6 | . 1 . . 1 1 3 . . . . . Propulsion 7 | . . 2 . . 1 4 . . . . . Utility 19 | . . . 4 1 3 3 . . . . 8 Weapon 12 | . 1 2 1 2 1 4 . . . 1 . Tool/Special 1 | . . . . 1 . . . . . . . Average Slot Usage (%) 75 | . 100 98 87 93 78 61 49 41 52 52 44 Engine 5 | . 14 12 4 7 6 . . . . . . Core 1 | . . . 2 . . 3 5 5 1 . . Treads 14 | . 28 25 26 30 13 . 2 . . . . Leg 2 | . . . . . 2 4 2 5 5 5 5 Hover 1 | . . . . . . 4 . . . . . Device 11 | . 14 14 12 10 10 9 14 17 12 17 13 Storage 7 | . 14 14 9 7 6 3 1 5 5 5 5 Processor 6 | . . . . 10 14 8 5 5 9 5 5 Protection 3 | . . . 9 3 1 5 3 . . . . Energy Gun 3 | . 1 6 2 5 3 3 4 . . 3 . Ballistic Gun 9 | . 26 21 15 14 6 . . . 3 . 2 Ballistic Cannon 2 | . . . . . 6 6 . . . 1 2 Peak Build Rating 80 | 7 7 12 30 46 55 62 70 56 67 75 80 Average Rating 38 | 4 6 9 25 40 47 48 55 53 58 65 68 On Entrance 37 | . 7 7 11 30 45 49 50 52 56 62 75 Avg Prop Armor Cover (%) 5 | . . 6 4 . . . . . . . . Naked Turns . | . . . . . . . . . . . . Heaviest Build 115 | 13 13 19 109 114 113 115 50 43 42 42 52 Greatest Support 85 | 40 40 40 82 82 82 73 60 60 60 85 85 Greatest Overweight (x) 37 | . . 1 1 1 37 4 . . . . . Average Overweight (x) . | . . . . 1 1 1 . . . . . Largest Inventory Capacity 25 | 8 8 8 25 25 25 25 15 15 15 15 15 Average Capacity 15 | 7 8 8 14 25 25 13 7 15 15 15 15 Most Carried 25 | 5 8 8 15 25 25 25 6 11 15 15 14 Average Carried 12 | 3 7 7 10 21 22 10 5 5 11 14 12 Final Capacity 25 | 8 8 8 25 25 25 5 15 15 15 15 15 Final Carried 24 | 4 8 7 15 24 20 5 6 11 15 14 10 Scrap Engine Consumption 68 | . . . . . . 33 6 2 9 6 12 Constructs Created 6 | . . . . . . 3 . . 1 . 2 Constructs Modified 20 | . . . . . . 9 4 . 2 4 1 Class Distribution -------------------- 52% | Mutant 12% | Scavenger-Mutant 11% | Scavenger-Skirmisher 11% | Tank 4% | Scavenger-Tank 4% | Skirmisher Dominant Class ---------------- Mutant | -10/Materials Mutant | -10/Subcaves Scavenger-Mutant | -8/Materials Scavenger-Skirmisher | -7/Factory Scavenger-Skirmisher | -7/Storage Mutant | -7/Recycling Mutant | -5/Factory Mutant | -5/Upper Caves Mutant | -5/Upper Caves Mutant | -5/Zhirov Mutant | -4/Proximity Caves Resources | -11 -10 -10 -8 -7 -7 -7 -5 -5 -5 -5 -4 ----------- Run | Yrd Mat Sub Mat Fac Sto Rec Fac Upp Upp Zhi Pro Matter Collected 3121 | 270 44 167 282 380 730 573 71 28 248 . 328 Remotely . | . . . . . . . . . . . . Salvage Created 3822 | 26 89 324 569 502 1304 92 100 26 307 . 483 Parts 183 | 2 4 31 28 29 48 4 6 4 6 . 21 Haulers Intercepted 1 | . . . . . 1 . . . . . . Recyclers Shooed 3 | . . . . . 3 . . . . . . Parts Field Recycled . | . . . . . . . . . . . . Retrieved Matter . | . . . . . . . . . . . . Parts Self-Destructed 28 | . . 19 . . . . . 2 2 . 5 Prevented 8 | . . . . . . . . . . . 8 Parts Restored . | . . . . . . . . . . . . Kills | -11 -10 -10 -8 -7 -7 -7 -5 -5 -5 -5 -4 ------- Run | Yrd Mat Sub Mat Fac Sto Rec Fac Upp Upp Zhi Pro Combat Hostiles Destroyed 73 | . 2 11 7 8 25 2 6 2 4 . 6 Melee 4 | . . . . . . . . . 3 . 1 Guns 40 | . 2 11 7 7 10 . 1 . 1 . 1 Cannons 16 | . . . . 1 11 2 1 . . . 1 AOE 11 | . . . . . 4 . 4 2 . . 1 Classes Destroyed 14 | 1 1 2 3 2 3 . . . 1 . 1 Builder 1 | . . . . . 1 . . . . . . Tunneler 1 | 1 . . . . . . . . . . . Hauler 1 | . . . . . 1 . . . . . . Recycler 3 | . . . 1 1 1 . . . . . . Mechanic 1 | . . . . . 1 . . . . . . Watcher 6 | . . . 3 2 1 . . . . . . Swarmer 14 | . . 4 . . . . 5 2 3 . . Grunt 22 | . 2 2 5 . 12 . 1 . . . . Sentry 17 | . . . 2 3 11 1 . . . . . Hunter 10 | . . . . 3 1 . . . . . 6 Programmer 3 | . . . . 2 1 . . . . . . Subdweller 6 | . . 5 . . . 1 . . . . . Decomposer 1 | . . . . . . . . . . . 1 Mutant 1 | . . . . . . . . . 1 . . Best Kill Streak 7 | 1 1 2 3 2 7 1 5 2 3 . 2 Combat Bots Only 5 | . 1 2 2 2 5 1 5 2 3 . 2 Max Kills in Single Turn 2 | 1 1 1 1 1 2 1 2 2 1 . 1 Gunslinging . | . . . . . . . . . . . . Exploded 2 | . . . . . 2 . 2 2 . . 1 Melee 1 | . . . . . . . . . 1 . 1 Uniques/NPCs Destroyed . | . . . . . . . . . . . . Combat | -11 -10 -10 -8 -7 -7 -7 -5 -5 -5 -5 -4 -------- Run | Yrd Mat Sub Mat Fac Sto Rec Fac Upp Upp Zhi Pro Hostile Shots Fired 967 | . 19 55 68 116 347 20 40 13 77 . 212 Missed 324 | . 7 16 16 38 126 2 15 6 25 . 73 Hits 643 | . 12 39 52 78 221 18 25 7 52 . 139 Projectile 643 | . 12 39 52 78 221 18 25 7 52 . 139 AOE 4 | . . 4 . . . . . . . . . Critical Strikes 17 | . . 2 3 1 3 . 3 . . . 5 Damage Taken 9423 | . 173 762 859 745 2272 161 666 147 870 . 2768 Core 1793 | . 46 179 56 86 396 22 104 . 208 . 696 Absorbed by Shields 17 | . . . . . . . . . . . 17 Regen/Repaired (Parts) 531 | . . . . . . 5 90 . 79 310 47 Core Remaining (%) 56 | 100 . 10 89 . . 28 . . . . . Volleys Fired 306 | 2 18 42 45 30 77 3 25 4 16 . 44 Largest 3 | 2 2 2 2 3 3 3 1 1 1 . 1 Hottest 157 | 60 40 90 88 148 139 157 53 30 29 . 46 Shots Fired 554 | 4 36 83 90 85 158 9 25 4 16 . 44 Gun 398 | 4 36 83 90 79 52 2 17 . 16 . 19 Cannon 121 | . . . . 6 90 6 2 . . . 17 Launcher 34 | . . . . . 16 1 5 4 . . 8 Special 1 | . . . . . . . 1 . . . . Kinetic 409 | 2 36 64 78 58 111 6 2 . 16 . 36 Thermal 91 | 2 . 19 12 27 29 2 . . . . . Explosive 10 | . . . . . 1 . 5 4 . . . Electromagnetic 43 | . . . . . 17 1 17 . . . 8 Robot Hit Streak 23 | 3 9 23 17 10 15 4 2 4 18 . 8 Robot Miss Streak 9 | . 2 3 7 8 9 2 2 . 1 . 3 Penetration Max . | . . . . . . . . . . . . Secondary Targets 5 | . . 3 1 . 1 . . . . . . Max Gunslinging Chain 1 | . . 1 1 . 1 . . . . . . Shots Hit Robots 396 | 3 27 41 60 61 122 5 7 4 30 . 36 Core Hits 277 | 2 6 19 23 35 144 6 15 4 7 . 16 Critical Kills 3 | . . 2 1 . . . . . . . . Critical Parts Destroyed 2 | . 1 1 . . . . . . . . . Critical Strikes 9 | . 1 3 2 . 1 1 . . 1 . . Burn 1 | . . . 1 . . . . . . . . Destroy 5 | . 1 3 1 . . . . . . . . Blast 2 | . . . . . 1 1 . . . . . Sever 1 | . . . . . . . . . 1 . . Melee Attacks 34 | . . . . . . . . . 20 . 14 Impact . | . . . . . . . . . . . . Slashing 20 | . . . . . . . . . 20 . . Piercing 14 | . . . . . . . . . . . 14 Sneak Attacks . | . . . . . . . . . . . . Combat Hostiles . | . . . . . . . . . . . . Follow-up Attacks . | . . . . . . . . . . . . Damage Inflicted 8987 | 27 202 566 1012 1017 2954 109 631 104 980 . 1385 Guns 4567 | 27 202 566 1012 954 1010 45 225 . 270 . 256 Cannons 1621 | . . . . 63 1236 64 54 . . . 204 Explosions 1609 | . . . . . 708 . 352 104 . . 445 Melee 1190 | . . . . . . . . . 710 . 480 Ramming . | . . . . . . . . . . . . Kinetic 4533 | 7 202 286 843 613 1734 64 54 . 270 . 460 Thermal 1452 | 20 . 280 169 404 534 45 . . . . . Explosive 483 | . . . . . 27 . 352 104 . . . Electromagnetic 1329 | . . . . . 659 . 225 . . . 445 Impact . | . . . . . . . . . . . . Slashing 710 | . . . . . . . . . 710 . . Piercing 480 | . . . . . . . . . . . 480 Highest Corruption 6 | . . . . 5 6 6 2 2 3 3 4 Average Corruption 4 | . . . . 3 5 6 1 2 2 3 3 Corruption Purged . | . . . . . . . . . . . . Corruption Blocked . | . . . . . . . . . . . . Effects 125 | . . . . 13 29 62 2 3 4 5 7 Message Errors 31 | . . . . 3 5 16 1 1 2 1 2 Matter Fused 34 | . . . . 4 7 17 . 1 1 1 3 Heat Flow Errors 11 | . . . . 1 3 6 . . . . 1 Energy Discharges 19 | . . . . 1 7 7 1 . . 2 1 Parts Rejected 1 | . . . . . 1 . . . . . . Data Loss (minor) 19 | . . . . 2 4 11 . 1 1 . . Data Loss (major) 4 | . . . . . . 3 . . . 1 . Misfires 3 | . . . . 1 . 2 . . . . . Weapon Failures 3 | . . . . 1 2 . . . . . . Overload Shots . | . . . . . . . . . . . . Overflow Damage 233 | . . . . . 15 . 2 . 181 . 35 Projectiles 2 | . . . . . 2 . . . . . . Explosions 50 | . . . . . 13 . 2 . . . 35 Melee 181 | . . . . . . . . . 181 . . Knockbacks 25 | . . . . 2 20 . . . . . 3 Impact . | . . . . . . . . . . . . Kinetic 24 | . . . . 2 19 . . . . . 3 Secondary 1 | . . . . . 1 . . . . . . Self-Inflicted Damage 262 | . . . . . 208 . 11 . . . 43 Shots 9 | . . . . . 6 . 1 . . . 2 Rammed . | . . . . . . . . . . . . Targets Rammed . | . . . . . . . . . . . . Kicked . | . . . . . . . . . . . . Crushed . | . . . . . . . . . . . . Highest Temperature 302 | 20 18 . 4 120 302 214 23 . 1 . 289 Average Temperature 54 | 15 10 . 2 25 77 61 13 . 1 . 127 Received Heat Transfer 2202 | . 102 147 495 114 666 36 100 18 99 . 425 Effects 1 | . . . . . . . . . . . 1 Interference 1 | . . . . . . . . . . . 1 Siege Activations . | . . . . . . . . . . . . Martial Activations . | . . . . . . . . . . . . Shielding Activations . | . . . . . . . . . . . . Robots Disrupted . | . . . . . . . . . . . . Combat Hostiles . | . . . . . . . . . . . . Robots Corrupted 2 | . . . . . . . . . . . 2 Combat Hostiles 2 | . . . . . . . . . . . 2 Parts Fried 10 | . . . . . 2 . 3 . . . 5 Impact Corruptions . | . . . . . . . . . . . . Robots Melted . | . . . . . . . . . . . . Combat Hostiles . | . . . . . . . . . . . . Parts Melted 3 | . . . 1 1 . 1 . . . . . Heat Transferred 2740 | 50 . 350 444 850 946 100 . . . . . Parts Sabotaged . | . . . . . . . . . . . . Parts Stolen . | . . . . . . . . . . . . Parts Stripped . | . . . . . . . . . . . . Power Chain Reactions 4 | . . . . . 4 . . . . . . Alert | -11 -10 -10 -8 -7 -7 -7 -5 -5 -5 -5 -4 ------- Run | Yrd Mat Sub Mat Fac Sto Rec Fac Upp Upp Zhi Pro Maximum Alert Level 2 | . . . . . 1 . 2 . . . . Low Security (%) 91 | 100 100 . 100 100 70 100 . . . . . Level 1 8 | . . . . . 29 . 84 . . . . Level 2 . | . . . . . . . 15 . . . . Level 3 . | . . . . . . . . . . . . Level 4 . | . . . . . . . . . . . . Level 5 . | . . . . . . . . . . . . High Security . | . . . . . . . . . . . . Max Security . | . . . . . . . . . . . . Peak Influence 458 | 5 30 . 62 75 359 129 458 . . . . Initial 258 | . . . 59 . . 129 258 . . . . Average 49 | . 4 . 21 18 154 11 316 . . . . Influence Increases 2614 | 5 50 220 224 314 854 97 540 55 105 . 150 Destroy 0b10 Robot/C 1320 | . 40 120 140 160 500 20 120 40 60 . 120 Destroy 0b10 Robot/NC 70 | 5 . . 20 15 25 . . . 5 . . Destroy Leader 354 | . 10 10 46 74 154 . 20 . 10 . 30 Successful Hack 181 | . . . 18 62 53 14 34 . . . . Select Force Hacks 60 | . . . . . . 60 . . . . . Disable Machine 105 | . . . . . 75 . 30 . . . . Destroy Structure 64 | . . . . 3 32 3 26 . . . . Advance Influence 250 | . . . . . . . 250 . . . . Partial Spotted 30 | . . . . . . . 30 . . . . Lose Combat Pursuer 180 | . . 90 . . 15 . 30 15 30 . . Influence Decreases 2614 | 5 50 106 337 315 522 409 142 306 272 . 150 Entered New Map 459 | . . . 55 1 . 203 12 156 32 . . Time Decay 1888 | 5 50 86 265 314 402 206 110 140 220 . 90 Lost Part 267 | . . 20 17 . 120 . 20 10 20 . 60 Squads Dispatched 15 | . 1 . 5 3 3 . 3 . . . . Investigation 3 | . . . . 1 . . 2 . . . . Extermination 2 | . . . . 1 1 . . . . . . Reinforcement 4 | . 1 . . 1 1 . 1 . . . . Assault . | . . . . . . . . . . . . Garrison 6 | . . . 5 . 1 . . . . . . Intercept . | . . . . . . . . . . . . Searches Triggered . | . . . . . . . . . . . . Construction Impeded 1 | . . . . . . . 1 . . . . Haulers Reinforced . | . . . . . . . . . . . . Active Scanning Responses . | . . . . . . . . . . . . Cargo Convoy Interrupts . | . . . . . . . . . . . . Stealth | -11 -10 -10 -8 -7 -7 -7 -5 -5 -5 -5 -4 --------- Run | Yrd Mat Sub Mat Fac Sto Rec Fac Upp Upp Zhi Pro Distress Signals 7 | . . . 2 . 4 1 . . . . . Communications Jammed . | . . . . . . . . . . . . Distress Signals . | . . . . . . . . . . . . Times Spotted 109 | . 3 13 10 12 30 3 16 3 7 . 12 Peak Tracking Total 5 | . 2 4 4 2 5 1 5 3 5 . 2 Tactical Retreats 7 | . . 2 . . 1 . 1 1 2 . . Traps | -11 -10 -10 -8 -7 -7 -7 -5 -5 -5 -5 -4 ------- Run | Yrd Mat Sub Mat Fac Sto Rec Fac Upp Upp Zhi Pro Traps Triggered 5 | . . . . 1 3 . 1 . . . . Indirectly 3 | . . . . . 3 . . . . . . Trap Hack Attempts . | . . . . . . . . . . . . Triggered . | . . . . . . . . . . . . Disarmed . | . . . . . . . . . . . . Reprogrammed . | . . . . . . . . . . . . Reused . | . . . . . . . . . . . . Traps Extracted . | . . . . . . . . . . . . Installed . | . . . . . . . . . . . . Triggered . | . . . . . . . . . . . . Machines | -11 -10 -10 -8 -7 -7 -7 -5 -5 -5 -5 -4 ---------- Run | Yrd Mat Sub Mat Fac Sto Rec Fac Upp Upp Zhi Pro Machines Disabled 10 | . . 1 . . 5 1 2 . 1 . . Max in Single Turn 1 | . . 1 . . 1 1 1 . 1 . . Machines Repaired . | . . . . . . . . . . . . Machines Dismantled . | . . . . . . . . . . . . Machines Sabotaged . | . . . . . . . . . . . . Overloaded Fab Kills . | . . . . . . . . . . . . Hacking | -11 -10 -10 -8 -7 -7 -7 -5 -5 -5 -5 -4 --------- Run | Yrd Mat Sub Mat Fac Sto Rec Fac Upp Upp Zhi Pro Machines Accessed 42 | . . 1 5 7 5 12 7 1 . 4 . Terminals 25 | . . . 4 6 5 6 4 . . . . Fabricators 2 | . . . . . . . 2 . . . . Repair Stations . | . . . . . . . . . . . . Recycling Units 7 | . . . . 1 . 5 1 . . . . Scanalyzers 1 | . . . 1 . . . . . . . . Garrison Access . | . . . . . . . . . . . . Total Hacks 106 | . . 1 11 15 12 32 17 1 . 17 . Successful 56 | . . 1 7 7 5 16 2 1 . 17 . Failed 49 | . . . 3 8 7 16 15 . . . . Catastrophic 11 | . . . . 3 . 4 4 . . . . Database Lockouts 1 | . . . 1 . . . . . . . . Manual 48 | . . . 9 11 10 15 3 . . . . Terminals 59 | . . . 9 13 12 14 11 . . . . Fabricators 4 | . . . . . . . 4 . . . . Repair Stations . | . . . . . . . . . . . . Recycling Units 20 | . . . . 2 . 16 2 . . . . Scanalyzers 2 | . . . 2 . . . . . . . . Garrison Access . | . . . . . . . . . . . . Terminal Hacks 30 | . . 1 1 1 1 6 2 1 . 17 . Record 5 | . . . . . . . . . . 5 . Part Schematic 6 | . . . . . . 1 1 . . 4 . Robot Analysis 4 | . . . . . . . . . . 4 . Prototype ID Bank 4 | . . . . . . . . . . 4 . Open Door 2 | . . . . . 1 . . 1 . . . Branch Access Points 2 | . . . . 1 . . 1 . . . . Terminal Index 2 | . . . 1 . . 1 . . . . . Zone Layout 2 | . . . . . . 2 . . . . . Proto ID Catalog 1 | . . 1 . . . . . . . . . Release Object 2 | . . . . . . 2 . . . . . Fabricator Hacks . | . . . . . . . . . . . . Repair Station Hacks . | . . . . . . . . . . . . Recycling Unit Hacks 5 | . . . . 1 . 4 . . . . . Retrieve Components 5 | . . . . 1 . 4 . . . . . Scanalyzer 1 | . . . 1 . . . . . . . . Retrieve Study 1 | . . . 1 . . . . . . . . Garrison Access Hacks . | . . . . . . . . . . . . Unauthorized Hacks 20 | . . . 5 5 4 6 . . . . . Terminals 18 | . . . 5 5 4 4 . . . . . Botnet 2 | . . . 1 1 . . . . . . . Skim 16 | . . . 4 4 4 4 . . . . . Fabricators . | . . . . . . . . . . . . Repair Stations . | . . . . . . . . . . . . Recycling Units 2 | . . . . . . 2 . . . . . Tunnel 2 | . . . . . . 2 . . . . . Scanalyzers . | . . . . . . . . . . . . Garrison Access . | . . . . . . . . . . . . Data Cores Recovered . | . . . . . . . . . . . . Used . | . . . . . . . . . . . . Hacking Detections 31 | . . . 3 6 4 11 7 . . . . Full Trace Events 6 | . . . . 1 . 3 2 . . . . Feedback Events 2 | . . . . 1 . . 1 . . . . Corruption 2 | . . . . 1 . . 1 . . . . Feedback Blocked . | . . . . . . . . . . . . Robot Schematics Acquired . | . . . . . . . . . . . . Robots Built . | . . . . . . . . . . . . Authchips . | . . . . . . . . . . . . Time . | . . . . . . . . . . . . Total Robot Build Rating . | . . . . . . . . . . . . Part Schematics Acquired 6 | . . . . . . 1 1 . . 4 . Parts Built . | . . . . . . . . . . . . Authchips . | . . . . . . . . . . . . Time . | . . . . . . . . . . . . Total Part Build Rating . | . . . . . . . . . . . . Part Studies Acquired 1 | . . . 1 . . . . . . . . Parts Repaired . | . . . . . . . . . . . . Time . | . . . . . . . . . . . . Parts Recycled . | . . . . . . . . . . . . Recycled Matter . | . . . . . . . . . . . . Retrieved Matter . | . . . . . . . . . . . . Retrieved Components 17 | . . . . 3 . 14 . . . . . Parts Scanalyzed . | . . . . . . . . . . . . Part Schematics Acquired . | . . . . . . . . . . . . Parts Damaged . | . . . . . . . . . . . . Bothacking | -11 -10 -10 -8 -7 -7 -7 -5 -5 -5 -5 -4 ------------ Run | Yrd Mat Sub Mat Fac Sto Rec Fac Upp Upp Zhi Pro Used RIF Installer . | . . . . . . . . . . . . Robots Hacked . | . . . . . . . . . . . . Non-combat . | . . . . . . . . . . . . Combat . | . . . . . . . . . . . . Robot Hacks Applied . | . . . . . . . . . . . . Relay Couplers Released . | . . . . . . . . . . . . Fabnet Peak Effective % . | . . . . . . . . . . . . Robots Rewired . | . . . . . . . . . . . . Allies Hacked . | . . . . . . . . . . . . Hacks Repelled . | . . . . . . . . . . . . Allies | -11 -10 -10 -8 -7 -7 -7 -5 -5 -5 -5 -4 -------- Run | Yrd Mat Sub Mat Fac Sto Rec Fac Upp Upp Zhi Pro Total Allies . | . . . . . . . . . . . . Largest Group . | . . . . . . . . . . . . Highest-Rated Group . | . . . . . . . . . . . . Highest-Rated Ally . | . . . . . . . . . . . . Total Orders . | . . . . . . . . . . . . Ally Attacks . | . . . . . . . . . . . . Total Damage . | . . . . . . . . . . . . Kills . | . . . . . . . . . . . . Allies Corrupted . | . . . . . . . . . . . . Allies Melted . | . . . . . . . . . . . . Intel | -11 -10 -10 -8 -7 -7 -7 -5 -5 -5 -5 -4 ------- Run | Yrd Mat Sub Mat Fac Sto Rec Fac Upp Upp Zhi Pro Active Infowar (turns) 7833 | 30 337 1445 154 1342 1024 2108 223 299 492 229 150 Sensors 1251 | . . . . . . . 81 299 492 229 150 Terrain 1332 | . . . . 603 729 . . . . . . Seismic 1966 | 30 337 1445 154 . . . . . . . . Machine Analysis 4616 | . . . . 1342 1024 2108 142 . . . . Robot Analysis Total 4 | . . . . . . . . . . 4 . Derelict Logs Recovered 2 | . . 1 . . . . . 1 . . . Drone Launches . | . . . . . . . . . . . . Drone Recoveries . | . . . . . . . . . . . . Exploration | -11 -10 -10 -8 -7 -7 -7 -5 -5 -5 -5 -4 ------------- Run | Yrd Mat Sub Mat Fac Sto Rec Fac Upp Upp Zhi Pro Turns Passed 8864 | 94 337 1445 822 1378 1024 2108 224 299 527 229 377 Spaces Moved 4780 | 59 150 815 387 522 265 927 322 624 409 161 139 Core 22 | 21 . . . . 1 . . . . . . Treads 2402 | 38 150 725 257 522 141 376 193 . . . . Legs 1808 | . . . . . 123 223 129 624 409 161 139 Wheels 220 | . . 90 130 . . . . . . . . Hover 328 | . . . . . . 328 . . . . . Flight . | . . . . . . . . . . . . Fastest Speed 45 | 50 160 95 90 238 200 45 45 45 45 45 141 Average Speed 135 | 120 160 152 162 238 265 153 45 45 45 64 141 Slowest Speed 1900 | 160 160 160 238 238 1900 285 45 45 45 141 141 Overloaded Moves . | . . . . . . . . . . . . Propulsion Burnouts . | . . . . . . . . . . . . Robots Hopped . | . . . . . . . . . . . . Potential Cave-ins . | . . . . . . . . . . . . Cave-ins Triggered . | . . . . . . . . . . . . Teleports 1 | . . . . . . . . . . . 1 Exploration Rate (%) 41 | 4 27 55 37 12 52 97 13 76 48 59 15 Regions Visited 11 Branch Regions 7 Pre-discovered Areas 8 | . . 2 . . . 2 . 1 . 3 . Known Exits Taken 5 | . . . . 1 . . 1 1 1 1 . Unknown Exits Taken 6 | 1 1 1 1 . 1 1 . . . . . Scrap Searched 4 | . . . . . . . . 2 1 . 1 Spaces Dug 3 | . . . . . 2 1 . . . . . Terrain Destroyed 87 | . . . . 3 24 2 20 20 . . 18 Melee . | . . . . . . . . . . . . Projectile 32 | . . . . 3 9 2 . . . . 18 AOE 55 | . . . . . 15 . 20 20 . . . Terrain Rammed . | . . . . . . . . . . . . Walls Destroyed . | . . . . . . . . . . . . Machines Disabled . | . . . . . . . . . . . . Actions | -11 -10 -10 -8 -7 -7 -7 -5 -5 -5 -5 -4 --------- Run | Yrd Mat Sub Mat Fac Sto Rec Fac Upp Upp Zhi Pro Total 6671 | 78 219 940 504 593 447 1613 375 638 717 287 260 Wait 1260 | . 39 61 19 . 63 633 15 2 261 113 54 Move 4769 | 58 149 814 386 521 264 926 321 623 408 160 139 Hop . | . . . . . . . . . . . . Pick Up 105 | 11 7 5 19 22 14 10 2 7 5 1 2 Fast Attach 29 | . 1 2 10 1 2 3 3 . 1 6 . Attach 40 | 7 . . 2 4 10 6 2 1 2 . 6 Detach 3 | . . . . . 1 . 1 . 1 . . Swap 30 | . 1 6 5 5 7 2 2 . 2 . . Drop 95 | . 4 10 18 10 9 30 4 1 1 7 1 Fire 306 | 2 18 42 45 30 77 3 25 4 16 . 44 Melee 34 | . . . . . . . . . 20 . 14 Ram . | . . . . . . . . . . . . Kick . | . . . . . . . . . . . . Crush . | . . . . . . . . . . . . Escape Stasis . | . . . . . . . . . . . . Rewire . | . . . . . . . . . . . . Trap . | . . . . . . . . . . . . Miscellaneous . | . . . . . . . . . . . . Route ------- -11/Scrapyard -10/Materials (discovered 3 exits: [*Min x2] / *Sub) -10/Subcaves (discovered 2 exits: *Mat / [*Scr]) -8/Materials -7/Factory (discovered 3 exits: *Sto / *Low x2) -7/Storage -7/Recycling -5/Factory (discovered 4 exits: *Upp x2 / Ext x2) -5/Upper Caves -5/Upper Caves -5/Zhirov -4/Proximity Caves History --------- Turn | Location | Event 9 | -11/Scrapyard | Discovered new exit (range 14) 95 | -11/Scrapyard | Entered Materials 241 | -10/Materials | Discovered new exit (range 9) 260 | -10/Materials | Discovered new exit (range 16) 300 | -10/Materials | Build established: Mutant 347 | -10/Materials | Discovered new exit (range 9) 432 | -10/Materials | Entered Subcaves 433 | -10/Subcaves | Approached by a straggling Scientist 514 | -10/Subcaves | A swath of the cavern ceiling suddenly collapsed 948 | -10/Subcaves | Shifting Twisted Machinery released Spk. Treads 1112 | -10/Subcaves | Learned location of Storage (-7) 1185 | -10/Subcaves | Core integrity fell below 50% 1517 | -10/Subcaves | Visited 4L-MR0's lab 1538 | -10/Subcaves | Found Cargo Legs 1586 | -10/Subcaves | Shifting Twisted Machinery released Sub. Laser 1762 | -10/Subcaves | Core integrity fell below 20% 1852 | -10/Subcaves | Learned location of Zion (-7) 1852 | -10/Subcaves | Met a Zionite searching for "candidates" 1866 | -10/Subcaves | Discovered new exit (range 6) 1877 | -10/Subcaves | Entered Materials 1877 | -8/Materials | Evolved 4 slots: Propulsion x2, Utility x2 1974 | -8/Materials | Central database locked down 2243 | -8/Materials | Garrison activated, responded to threat 2363 | -8/Materials | Build established: Scavenger-Mutant 2444 | -8/Materials | Discovered new exit (range 11) 2592 | -8/Materials | Garrison activated, responded to threat 2699 | -8/Materials | Entered Factory 2699 | -7/Factory | Evolved 2 slots: Utility x1, Weapon x1 3375 | -7/Factory | Build established: Scavenger-Tank 3554 | -7/Factory | Identified exit to Storage 3554 | -7/Factory | Identified exit to Lower Caves 3782 | -7/Factory | Build established: Scavenger-Skirmisher 4077 | -7/Factory | Entered Storage 4257 | -7/Storage | Lost 3 parts (1p1n1u) 4572 | -7/Storage | Garrison activated, responded to threat 4677 | -7/Storage | Attached Cargo Legs, gained temporary slots: Utility x2 4789 | -7/Storage | Core integrity fell below 50% 4830 | -7/Storage | Build established: Skirmisher 5091 | -7/Storage | Used back door to open Recycling access 5091 | -7/Storage | Discovered new exit (range 5) 5101 | -7/Storage | Entered Recycling 5262 | -7/Recycling | Build established: Tank 5602 | -7/Recycling | Entered Scraplab 5610 | -7/Recycling | Found Prototype Device 5611 | -7/Recycling | Identified Scrap Engine 5914 | -7/Recycling | Build established: Mutant 7013 | -7/Recycling | Build established: Tank 7102 | -7/Recycling | Discovered new exit (range 16) 7209 | -7/Recycling | Entered Factory 7209 | -5/Factory | Evolved 4 slots: Power x1, Propulsion x1, Utility x1, Weapon x1 7290 | -5/Factory | Identified exit to Upper Caves 7290 | -5/Factory | Identified exit to Extension 7433 | -5/Factory | Entered Upper Caves 7476 | -5/Upper Caves | Attracted the attention of an 0b10 checkpoint 7658 | -5/Upper Caves | Build established: Mutant 7729 | -5/Upper Caves | Discovered new exit (range 6) 7731 | -5/Upper Caves | Identified exit to Upper Caves 7732 | -5/Upper Caves | Entered another Upper Caves area 8049 | -5/Upper Caves | Attacked by a delusional Derelict stockpiling parts 8229 | -5/Upper Caves | Discovered new exit (range 15) 8234 | -5/Upper Caves | Identified exit to Zhirov 8259 | -5/Upper Caves | Entered Zhirov 8259 | -5/Zhirov | Discovered new exit (range 3) 8268 | -5/Zhirov | Met Zhirov 8276 | -5/Zhirov | Learned location of Testing (-3) 8276 | -5/Zhirov | Learned location of Quarantine (-2) 8280 | -5/Zhirov | Zhirov requested help retrieving the SGEMP Prototype 8287 | -5/Zhirov | Found Alien Artifact 8287 | -5/Zhirov | Identified Integrated Dissipator 8287 | -5/Zhirov | Installed Integrated Dissipator, increased core heat dissipation (+20) 8298 | -5/Zhirov | Found Alien Artifact 8487 | -5/Zhirov | Identified exit to Proximity Caves 8488 | -5/Zhirov | Entered Proximity Caves 8591 | -4/Proximity Caves | Lost 4 parts (1p1u2w) 8674 | -4/Proximity Caves | Core integrity fell below 50% 8725 | -4/Proximity Caves | Lost 3 parts (2u1w) 8786 | -4/Proximity Caves | Spotted B-86 Titan 8846 | -4/Proximity Caves | Core integrity fell below 20% 8863 | -4/Proximity Caves | Identified Transdimensional Reconstructor 8863 | -4/Proximity Caves | Warped through subspace 8865 | -4/Proximity Caves | Destroyed by S-27 Virus with Autogun Last Messages --------------- 08838_ Arm. Scrap Engine destroyed. 08838_ Scrap Engine core remains intact and functional. 08841_ Knocked back. 08845_ Penetrated by Slug. 08848_ Knocked back. 08848_ Penetrated by Slug. 08848_ Scrap Engine destroyed. 08851_ Myomer-Cooled Exoskeleton destroyed. 08851_ Myomer-Cooled Exoskeleton core remains intact and functional. 08851_ Knocked back. 08854_ Hpw. Ballistic Coil Construct/G destroyed. 08856_ System corrupted: Matter fused (-5). 08858_ Critical hit (Meltdown: +340). 08858_ Knocked back. 08860_ Overheating: System interference. 08860_ Imp. Signal Interpreter temporarily disabled. 08861_ B-86 Titan exits siege mode. 08861_ Lance destroyed. 08863_ Identified Transdimensional Reconstructor. 08863_ Warped through subspace. Map ----- +----------------------------------------------------+ | ?????????????????????????????????????????????????? | | ?????????????????????????????????????????????????? | | ?????????????????????????????????????????????????? | | ?????????????????????????????????????????????????? | | ?????????????????????????????????????????????????? | | ?????????????????????????????????????????????????? | | ?????????????????????????????????????????????????? | | ?????????????????????????????????????????????????? | | ?????????????????????????????????????????????????? | | ?????????????????????????????????????????????????? | | ?????????????????????????????????????????????????? | | ?????????????????????????????????????????????????? | | ?????????????????????????????# ????????????????? | | ????????????????????????????? ?????????????????? | | ???????????????????????????? ?????????????????? | | ???????????????????????????? #?????????????????? | | ???????????????????????????? #?????????????????? | | ??????????????????????????? ??????????????????? | | ??????????????????????????? ???????????????????? | | ??????????????????????????? ???????????????????? | | ??????????????????????????# ????????????????????? | | ?????????????????????????? #????????????????????? | | #????????????????????????? #????????????????????? | | #???????????????????????## #????????????????????? | | #??????????????????????## #????????????????????? | | #??????????????????????# @ #?????????????????????? | | #??????????????????? ##?????????????????????? | | ??????????????????# #??????????????????????? | | ???????????????? s ##??????????????????????? | | ????????????? s ????????????????????????? | | ???????????? #### s ????????????????????????? | | ????????????????# s ????????????????????????? | | ???????????????# s ????????????????????????? | | ??????????????# ????????????????????????? | | ??????????????# ### ?????????????????????????? | | ??????????????## #??## ?????????????????????????? | | ???????????????##????# ?????????????????????????? | | ?????????????????????###?????????????????????????? | | ?????????????????????????????????????????????????? | | ?????????????????????????????????????????????????? | | ?????????????????????????????????????????????????? | | ?????????????????????????????????????????????????? | | ?????????????????????????????????????????????????? | | ?????????????????????????????????????????????????? | | ?????????????????????????????????????????????????? | | ?????????????????????????????????????????????????? | | ?????????????????????????????????????????????????? | | ?????????????????????????????????????????????????? | | ?????????????????????????????????????????????????? | | ?????????????????????????????????????????????????? | +----------------------------------------------------+ Best States ------------- Heat Dissipation 81 Energy Generation 25 Energy Capacity 410 Matter Stores 300 Matter Capacity 300 Sight Range 16 Robot Scan Range 15 Terrain Scan Range 20 Terrain Scan Density 210 Armor Coverage 600 Evasion (%) 78 Melee Accuracy 8 Recoil Reduction 4 Item Schematics ----------------- KE Penetrator | -7/Recycling | Hacked Impulse Thruster | -5/Factory | Hacked Assault Drone Bay | -5/Zhirov | Free Exp. Heat Sink | -5/Zhirov | Free Exp. Optical Array | -5/Zhirov | Free Imp. Arc Thrower | -5/Zhirov | Free Robot Schematics ------------------ None Fabricated ------------ Nothing Repaired ---------- Nothing Studied --------- Wheel | -8/Materials | Hacked Alien Tech Used ----------------- Integrated Dissipator Transdimensional Reconstructor Achievements -------------- None Challenges ------------ None Game ------ Seed CloakVortexReactor Manual? 0 Play Time 00:55:05 Cumulative 510.7 hours Start 2025.11.17 @ 16:03:44 End 2025.11.17 @ 22:44:17 Sessions 2 Manual Loads 0 Difficulty Rogue Special Mode None Game No. 689 Rogue 689 Adventurer 0 Explorer 0 Win Type - Total 16 Types 8/0/2/2/1/0/2/1/0/0 Lore% 91 Gallery% 85 Achievement% 67 Wizard Run 0 Options --------- Layout 0 ASCII 0 Keyboard 0 Movement Mouse Keybinds 0 Fullscreen 1 Font 24/Terminus Map View 76x50 Zoom Use 0% Tactical HUD 1 Map Filters NONE Filters NONE Steam 1 RUN: 811fa10f-d022-4c5b-8570-62acc13524a9